fUST/lending_fUST_20241110
["ID","MTS","AMOUNT","RATE_DAILY","PERIOD"]
[341768151,1731220239641,-90.54230583,0.00030136,2]
[341768154,1731220239651,-500.0,0.00030136,2]
[341768157,1731220239660,-500.0,0.00030136,2]
[341768160,1731220239669,-500.0,0.00030136,2]
[341768163,1731220239678,-14.78282211,0.00030136,2]
[341768177,1731220239748,-497.66974176,0.00030136,2]
[341768179,1731220239757,-500.0,0.00030136,2]
[341768181,1731220239767,-500.0,0.00030136,2]
[341768183,1731220239776,-500.0,0.00030136,2]
[341768185,1731220239785,-485.98964498,0.00030136,2]
[341768187,1731220239796,-519.40952863,0.00030136,2]
[341768189,1731220239805,-500.0,0.00030136,2]
[341768191,1731220239816,-500.0,0.00030136,2]
[341768193,1731220239825,-500.0,0.00030136,2]
[341768195,1731220239834,-500.0,0.00030136,2]
[341768197,1731220239843,-513.84660173,0.00030136,2]
[341768199,1731220239852,-500.0,0.00030136,2]
[341768201,1731220239861,-500.0,0.00030136,2]
[341768203,1731220239872,-508.05241376,0.00030136,2]
[341768205,1731220239882,-500.0,0.00030136,2]
[341768207,1731220239891,-559.4747919,0.00030136,2]
[341768209,1731220239901,-500.0,0.00030136,2]
[341768211,1731220239910,-500.0,0.00030136,2]
[341768213,1731220239920,-500.0,0.00030136,2]
[341768215,1731220239929,-500.0,0.00030136,2]
[341768217,1731220239938,-500.0,0.00030136,2]
[341768219,1731220239947,-500.0,0.00030136,2]
[341768221,1731220239956,-500.0,0.00030136,2]
[341768223,1731220239966,-500.0,0.00030136,2]
[341768225,1731220239975,-500.0,0.00030136,2]
[341768227,1731220239984,-500.0,0.00030136,2]
[341768229,1731220239993,-500.0,0.00030136,2]
[341768230,1731220240002,-500.0,0.00030136,2]
[341768232,1731220240011,-500.0,0.00030136,2]
[341768234,1731220240021,-500.0,0.00030136,2]
[341768236,1731220240030,-503.74843027,0.00030136,2]
[341768238,1731220240040,-500.0,0.00030136,2]
[341768240,1731220240049,-500.0,0.00030136,2]
[341768242,1731220240058,-500.0,0.00030136,2]
[341768244,1731220240068,-500.0,0.00030136,2]
[341768246,1731220240076,-153.24891056,0.00030136,2]
[341768248,1731220240088,-500.0,0.00030136,2]
[341768250,1731220240097,-500.0,0.00030136,2]
[341768252,1731220240106,-500.0,0.00030136,2]
[341768254,1731220240116,-1456.54,0.00030136,2]
[341768256,1731220240125,-500.0,0.00030136,2]
[341768258,1731220240135,-500.0,0.00030136,2]
[341768259,1731220240145,-500.0,0.00030136,2]
[341768260,1731220240154,-373.97682757,0.00030136,2]
[341768261,1731220240163,-502.16065,0.00030136,2]
[341768262,1731220240174,-500.0,0.00030136,2]
[341768263,1731220240183,-500.0,0.00030136,2]
[341768264,1731220240192,-500.0,0.00030136,2]
[341768265,1731220240202,-500.0,0.00030136,2]
[341768266,1731220240211,-500.0,0.00030136,2]
[341768267,1731220240221,-500.0,0.00030136,2]
[341768268,1731220240230,-500.0,0.00030136,2]
[341768269,1731220240240,-500.0,0.00030136,2]
[341768270,1731220240249,-500.0,0.00030136,2]
[341768271,1731220240258,-502.77240549,0.00030136,2]
[341768272,1731220240267,-500.0,0.00030136,2]
[341768273,1731220240276,-500.0,0.00030136,2]
[341768274,1731220240285,-508.11079729,0.00030136,2]
[341768275,1731220240296,-158.30471881,0.00030136,2]
[341768276,1731220240305,-529.89562833,0.00030136,2]
[341768277,1731220240315,-500.0,0.00030136,2]
[341768278,1731220240325,-500.0,0.00030136,2]
[341768279,1731220240334,-500.0,0.00030136,2]
[341768280,1731220240343,-500.0,0.00030136,2]
[341768281,1731220240352,-500.0,0.00030136,2]
[341768282,1731220240361,-500.0,0.00030136,2]
[341768283,1731220240370,-515.84002688,0.00030136,2]
[341768284,1731220240380,-500.0,0.00030136,2]
[341768285,1731220240389,-500.0,0.00030136,2]
[341768286,1731220240398,-500.0,0.00030136,2]
[341768287,1731220240407,-422.63512285,0.00030136,2]
[341768288,1731220240416,-500.0,0.00030136,2]
[341768290,1731220240426,-500.0,0.00030136,2]
[341768291,1731220240435,-500.0,0.00030136,2]
[341768293,1731220240444,-500.0,0.00030136,2]
[341768295,1731220240453,-1781.88,0.00030136,2]
[341768297,1731220240462,-500.0,0.00030136,2]
[341768299,1731220240472,-500.0,0.00030136,2]
[341768301,1731220240483,-500.0,0.00030136,2]
[341768303,1731220240492,-500.0,0.00030136,2]
[341768306,1731220240502,-500.0,0.00030136,2]
[341768308,1731220240511,-500.0,0.00030136,2]
[341768310,1731220240520,-500.0,0.00030136,2]
[341768312,1731220240529,-500.0,0.00030136,2]
[341768313,1731220240540,-500.0,0.00030136,2]
[341768315,1731220240551,-500.0,0.00030136,2]
[341768318,1731220240561,-500.0,0.00030136,2]
[341768320,1731220240570,-500.0,0.00030136,2]
[341768321,1731220240579,-500.0,0.00030136,2]
[341768323,1731220240589,-4110.17,0.00030136,2]
[341768325,1731220240598,-500.0,0.00030136,2]
[341768327,1731220240607,-500.0,0.00030136,2]
[341768329,1731220240616,-500.0,0.00030136,2]
[341768331,1731220240626,-506.45497834,0.00030136,2]
[341768333,1731220240635,-500.0,0.00030136,2]
[341768335,1731220240644,-500.0,0.00030136,2]
[341768337,1731220240654,-500.0,0.00030136,2]
[341768339,1731220240663,-510.69540923,0.00030136,2]
[341768342,1731220240672,-506.03239013,0.00030136,2]
[341768343,1731220240682,-500.0,0.00030136,2]
[341768346,1731220240691,-642.54,0.00030136,2]
[341768348,1731220240701,-506.14,0.00030136,2]
[341768349,1731220240710,-500.0,0.00030136,2]
[341768351,1731220240719,-500.0,0.00030136,2]
[341768353,1731220240728,-500.0,0.00030136,2]
[341768355,1731220240738,-500.0,0.00030136,2]
[341768357,1731220240748,-500.0,0.00030136,2]
[341768360,1731220240757,-500.0,0.00030136,2]
[341768362,1731220240766,-500.0,0.00030136,2]
[341768364,1731220240775,-500.0,0.00030136,2]
[341768366,1731220240784,-500.0,0.00030136,2]
[341768367,1731220240794,-500.0,0.00030136,2]
[341768370,1731220240803,-500.0,0.00030136,2]
[341768371,1731220240813,-500.0,0.00030136,2]
[341768373,1731220240822,-1314.13,0.00030136,2]
[341768375,1731220240831,-1314.13,0.00030136,2]
[341768377,1731220240840,-1314.13,0.00030136,2]
[341768380,1731220240850,-500.0,0.00030136,2]
[341768382,1731220240859,-1314.13,0.00030136,2]
[341768392,1731220240949,-500.0,0.00030136,2]
[341768394,1731220240958,-1314.13,0.00030136,2]
[341768397,1731220240968,-1314.13,0.00030136,2]
[341768399,1731220240977,-1314.13,0.00030136,2]
[341768401,1731220240986,-500.0,0.00030136,2]
[341768403,1731220240995,-1314.13,0.00030136,2]
[341768405,1731220241005,-504.33165832,0.00030136,2]
[341768407,1731220241014,-500.0,0.00030136,2]
[341768408,1731220241023,-500.0,0.00030136,2]
[341768411,1731220241034,-498.0,0.00030136,2]
[341768413,1731220241045,-638.96458107,0.00030136,2]
[341768415,1731220241055,-500.0,0.00030136,2]
[341768416,1731220241064,-500.0,0.00030136,2]
[341768419,1731220241074,-500.0,0.00030136,2]
[341768421,1731220241083,-500.0,0.00030136,2]
[341768423,1731220241094,-506.21589926,0.00030136,2]
[341768424,1731220241106,-597.06911516,0.00030136,2]
[341768426,1731220241116,-500.0,0.00030136,2]
[341768428,1731220241125,-505.22346176,0.00030136,2]
[341768430,1731220241135,-500.0,0.00030136,2]
[341768432,1731220241145,-500.0,0.00030136,2]
[341768434,1731220241154,-500.0,0.00030136,2]
[341768436,1731220241163,-500.0,0.00030136,2]
[341768439,1731220241175,-317.35332445,0.00030136,2]
[341768441,1731220241185,-500.0,0.00030136,2]
[341768443,1731220241194,-215.86875417,0.00030136,2]
[341768445,1731220241203,-500.0,0.00030136,2]
[341768447,1731220241211,-500.0,0.00030136,2]
[341768449,1731220241222,-213.43973121,0.00030136,2]
[341768450,1731220241231,-221.54930797,0.00030136,2]
[341768452,1731220241240,-883.18,0.00030136,2]
[341768454,1731220241249,-500.0,0.00030136,2]
[341768456,1731220241258,-247.05859454,0.00030136,2]
[341768458,1731220241267,-500.0,0.00030136,2]
[341768460,1731220241276,-500.0,0.00030136,2]
[341768462,1731220241285,-500.0,0.00030136,2]
[341768464,1731220241295,-500.0,0.00030136,2]
[341768466,1731220241305,-500.0,0.00030136,2]
[341768468,1731220241315,-533.45,0.00030136,2]
[341768470,1731220241324,-500.0,0.00030136,2]
[341768472,1731220241333,-500.0,0.00030136,2]
[341768474,1731220241342,-500.0,0.00030136,2]
[341768476,1731220241351,-500.0,0.00030136,2]
[341768478,1731220241360,-500.0,0.00030136,2]
[341768480,1731220241369,-500.0,0.00030136,2]
[341768482,1731220241378,-500.0,0.00030136,2]
[341768484,1731220241387,-500.0,0.00030136,2]
[341768486,1731220241396,-500.0,0.00030136,2]
[341768488,1731220241405,-500.0,0.00030136,2]
[341768490,1731220241414,-505.47975946,0.00030136,2]
[341768492,1731220241423,-3128.5,0.00030136,120]
[341768494,1731220241432,-500.0,0.00030136,2]
[341768496,1731220241441,-617.60682414,0.00030136,2]
[341768498,1731220241450,-500.0,0.00030136,2]
[341768500,1731220241459,-500.0,0.00030136,2]
[341768502,1731220241468,-500.0,0.00030136,2]
[341768504,1731220241476,-500.0,0.00030136,2]
[341768506,1731220241485,-500.0,0.00030136,2]
[341768508,1731220241496,-500.0,0.00030136,2]
[341768510,1731220241505,-504.78545713,0.00030136,2]
[341768512,1731220241514,-500.0,0.00030136,2]
[341768514,1731220241523,-500.0,0.00030136,2]
[341768517,1731220241532,-500.0,0.00030136,2]
[341768519,1731220241545,-500.0,0.00030136,2]
[341768521,1731220241554,-500.0,0.00030136,2]
[341768523,1731220241563,-500.0,0.00030136,2]
[341768525,1731220241572,-500.0,0.00030173,5]
[341768526,1731220241582,-1314.13,0.00030409,2]
[341768529,1731220241592,-1314.13,0.00030409,2]
[341768531,1731220241603,-241.82105241,0.0003041,2]
[341768532,1731220241612,-500.0,0.0003041,2]
[341768534,1731220241621,-523.84825201,0.0003041,2]
[341768536,1731220241630,-500.0,0.0003041,2]
[341768538,1731220241638,-500.0,0.0003041,2]
[341768541,1731220241648,-500.0,0.0003041,2]
[341768542,1731220241657,-500.0,0.0003041,2]
[341768544,1731220241666,-500.0,0.0003041,2]
[341768545,1731220241675,-174.76423869,0.0003041,2]
[341768547,1731220241684,-500.0,0.0003041,2]
[341768549,1731220241693,-500.0,0.0003041,2]
[341768551,1731220241702,-224.39,0.0003041,2]
[341768553,1731220241711,-338.49,0.0003041,2]
[341768555,1731220241721,-500.0,0.0003041,2]
[341768557,1731220241730,-500.0,0.0003041,2]
[341768559,1731220241739,-500.0,0.0003041,2]
[341768561,1731220241748,-290.9728121,0.0003041,2]
[341768563,1731220241758,-619.41,0.0003041,2]
[341768565,1731220241767,-2345.66,0.0003041,2]
[341768567,1731220241776,-500.0,0.0003041,2]
[341768569,1731220241785,-500.0,0.0003041,2]
[341768571,1731220241796,-500.0,0.0003041,2]
[341768573,1731220241806,-500.0,0.0003041,2]
[341768575,1731220241815,-500.0,0.0003041,2]
[341768577,1731220241824,-500.0,0.0003041,2]
[341768579,1731220241833,-500.0,0.0003041,2]
[341768581,1731220241842,-500.0,0.0003041,2]
[341768583,1731220241852,-500.0,0.0003041,2]
[341768585,1731220241861,-500.0,0.0003041,2]
[341768587,1731220241871,-500.0,0.0003041,2]
[341768589,1731220241881,-1264.14,0.0003041,2]
[341768591,1731220241891,-500.0,0.0003041,2]
[341768593,1731220241902,-500.0,0.0003041,2]
[341768595,1731220241912,-500.0,0.0003041,2]
[341768597,1731220241921,-500.0,0.0003041,2]
[341768599,1731220241931,-500.0,0.0003041,2]
[341768601,1731220241940,-731.03,0.0003041,2]
[341768603,1731220241950,-500.0,0.0003041,2]
[341768605,1731220241959,-500.0,0.0003041,2]
[341768607,1731220241968,-500.0,0.0003041,2]
[341768609,1731220241979,-500.0,0.0003041,2]
[341768611,1731220241990,-500.0,0.0003041,2]
[341768613,1731220242000,-500.0,0.0003041,2]
[341768615,1731220242009,-500.0,0.0003041,2]
[341768617,1731220242018,-500.0,0.0003041,2]
[341768619,1731220242027,-500.0,0.0003041,2]
[341768621,1731220242036,-500.0,0.0003041,2]
[341768623,1731220242046,-500.0,0.0003041,2]
[341768625,1731220242055,-500.0,0.0003041,2]
[341768627,1731220242064,-500.0,0.0003041,2]
[341768629,1731220242073,-500.0,0.0003041,2]
[341768631,1731220242083,-500.0,0.0003041,2]
[341768633,1731220242094,-500.0,0.0003041,2]
[341768635,1731220242105,-500.0,0.0003041,2]
[341768637,1731220242114,-536.15918982,0.0003041,2]
[341768639,1731220242123,-500.0,0.0003041,2]
[341768641,1731220242133,-500.0,0.0003041,2]
[341768643,1731220242143,-461.63341102,0.0003041,2]
[341768644,1731220242152,-500.0,0.0003041,2]
[341768646,1731220242161,-511.47638509,0.0003041,2]
[341768649,1731220242172,-1456.54,0.0003041,2]
[341768650,1731220242181,-503.60762378,0.0003041,2]
[341768652,1731220242190,-500.0,0.0003041,2]
[341768654,1731220242199,-500.0,0.0003041,2]
[341768656,1731220242209,-500.0,0.0003041,2]
[341768658,1731220242218,-500.0,0.0003041,2]
[341768660,1731220242227,-500.0,0.0003041,2]
[341768662,1731220242237,-500.0,0.0003041,2]
[341768664,1731220242246,-500.0,0.0003041,2]
[341768666,1731220242255,-507.45959272,0.0003041,2]
[341768669,1731220242264,-500.0,0.0003041,2]
[341768671,1731220242276,-1781.88,0.0003041,2]
[341768673,1731220242285,-500.0,0.0003041,2]
[341768674,1731220242295,-500.0,0.0003041,2]
[341768677,1731220242304,-500.0,0.0003041,2]
[341768679,1731220242314,-500.0,0.0003041,2]
[341768680,1731220242323,-500.0,0.0003041,2]
[341768683,1731220242333,-500.0,0.0003041,2]
[341768684,1731220242342,-500.0,0.0003041,2]
[341768686,1731220242351,-500.0,0.0003041,2]
[341768688,1731220242360,-500.0,0.0003041,2]
[341768690,1731220242369,-776.96465224,0.0003041,2]
[341768707,1731220242467,-3093.35390957,0.00028096,2]
[341768709,1731220242476,-500.0,0.00030135,2]
[341768711,1731220242485,-3333.20534776,0.0003041,2]
[341768713,1731220242495,-500.0,0.0003041,2]
[341768715,1731220242507,-500.0,0.0003041,2]
[341768717,1731220242518,-500.0,0.0003041,2]
[341768719,1731220242528,-287.48196514,0.0003041,2]
[341768721,1731220242538,-500.0,0.0003041,2]
[341768723,1731220242548,-642.54,0.0003041,2]
[341768725,1731220242558,-500.0,0.0003041,2]
[341768727,1731220242568,-500.0,0.0003041,2]
[341768729,1731220242577,-500.0,0.0003041,2]
[341768731,1731220242586,-500.0,0.0003041,2]
[341768733,1731220242595,-500.0,0.0003041,2]
[341768735,1731220242604,-500.0,0.0003041,2]
[341768737,1731220242613,-500.0,0.0003041,2]
[341768739,1731220242622,-500.0,0.0003041,2]
[341768741,1731220242631,-500.0,0.0003041,2]
[341768743,1731220242640,-506.81905352,0.0003041,2]
[341768745,1731220242650,-500.0,0.0003041,2]
[341768747,1731220242659,-500.0,0.0003041,2]
[341768749,1731220242667,-500.0,0.0003041,2]
[341768751,1731220242677,-259.44494162,0.0003041,2]
[341768753,1731220242688,-319.95713284,0.0003041,2]
[341768755,1731220242697,-883.18,0.0003041,2]
[341768757,1731220242707,-174.37570847,0.0003041,2]
[341768759,1731220242716,-500.0,0.0003041,2]
[341768761,1731220242725,-500.0,0.0003041,2]
[341768763,1731220242734,-500.0,0.0003041,2]
[341768765,1731220242743,-533.45,0.0003041,2]
[341768767,1731220242751,-500.0,0.0003041,2]
[341768769,1731220242760,-500.0,0.0003041,2]
[341768771,1731220242770,-500.0,0.0003041,2]
[341768773,1731220242779,-500.0,0.0003041,2]
[341768775,1731220242788,-500.0,0.0003041,2]
[341768777,1731220242797,-500.0,0.0003041,2]
[341768779,1731220242807,-500.0,0.0003041,2]
[341768781,1731220242817,-508.64373175,0.0003041,2]
[341768783,1731220242826,-527.72038866,0.0003041,2]
[341768785,1731220242835,-500.0,0.0003041,2]
[341768787,1731220242845,-500.0,0.0003041,2]
[341768789,1731220242854,-609.58,0.0003041,2]
[341768791,1731220242863,-506.14731943,0.0003041,2]
[341768793,1731220242872,-500.0,0.0003041,2]
[341768795,1731220242881,-500.0,0.0003041,2]
[341768797,1731220242890,-160.38598261,0.00030431,5]
[341768799,1731220242899,-1314.13,0.00030437,2]
[341768801,1731220242908,-1999.0,0.00030438,2]
[341768803,1731220242918,-1999.0,0.00030438,2]
[341768805,1731220242927,-1999.0,0.00030438,2]
[341768807,1731220242936,-1999.0,0.00030438,2]
[341768809,1731220242945,-1839.82973624,0.00030438,2]
[341768811,1731220242957,-159.17026376,0.00030438,2]
[341768813,1731220242966,-1999.0,0.00030438,2]
[341768816,1731220242975,-1999.0,0.00030438,2]
[341768818,1731220242985,-1999.0,0.00030438,2]
[341768828,1731220242994,-1999.0,0.00030438,2]
[341768830,1731220243087,-1999.0,0.00030438,2]
[341768832,1731220243098,-1999.0,0.00030438,2]
[341768834,1731220243108,-1999.0,0.00030438,2]
[341768836,1731220243118,-1999.0,0.00030438,2]
[341768838,1731220243127,-66.39702277,0.00030438,2]
[341768844,1731220243174,-500.0,0.00030135,2]
[341768846,1731220243184,-227.12562855,0.00030135,2]
[341768848,1731220243194,-500.0,0.00030135,2]
[341768850,1731220243204,-500.0,0.00030135,2]
[341768852,1731220243214,-500.0,0.00030135,2]
[341768854,1731220243223,-500.0,0.00030135,2]
[341768856,1731220243232,-1932.60297723,0.00030438,2]
[341768858,1731220243242,-1999.0,0.00030438,2]
[341768860,1731220243252,-1778.92034504,0.00030438,2]
[341768862,1731220243261,-184.00577479,0.00030563,2]
[341768864,1731220243271,-168.617,0.0003061,30]
[341768866,1731220243280,-1314.13,0.00030683,2]
[341768868,1731220243291,-655.22,0.00030683,2]
[341768870,1731220243300,-500.0,0.00030684,2]
[341768871,1731220243310,-500.0,0.00030684,2]
[341768872,1731220243319,-500.0,0.00030684,2]
[341768873,1731220243329,-500.0,0.00030684,2]
[341768874,1731220243338,-500.0,0.00030684,2]
[341768875,1731220243347,-500.0,0.00030684,2]
[341768876,1731220243356,-500.0,0.00030684,2]
[341768877,1731220243366,-619.41,0.00030684,2]
[341768878,1731220243378,-2345.66,0.00030684,2]
[341768879,1731220243387,-283.72476953,0.00030684,2]
[341768880,1731220243396,-500.0,0.00030684,2]
[341768881,1731220243405,-618.9,0.00030684,2]
[341768882,1731220243415,-1264.14,0.00030684,2]
[341768883,1731220243424,-500.0,0.00030684,2]
[341768884,1731220243434,-500.0,0.00030684,2]
[341768885,1731220243444,-731.03,0.00030684,2]
[341768886,1731220243453,-500.0,0.00030684,2]
[341768887,1731220243462,-430.14210893,0.00030684,2]
[341768888,1731220243472,-304.7056378,0.00030684,2]
[341768889,1731220243481,-500.0,0.00030684,2]
[341768890,1731220243491,-500.0,0.00030684,2]
[341768891,1731220243501,-500.0,0.00030684,2]
[341768892,1731220243510,-500.0,0.00030684,2]
[341768893,1731220243520,-1456.54,0.00030684,2]
[341768894,1731220243529,-500.0,0.00030684,2]
[341768895,1731220243538,-212.68181314,0.00030684,2]
[341768897,1731220243549,-500.0,0.00030684,2]
[341768898,1731220243558,-500.0,0.00030684,2]
[341768900,1731220243567,-500.0,0.00030684,2]
[341768902,1731220243576,-500.0,0.00030684,2]
[341768904,1731220243585,-1781.88,0.00030684,2]
[341768906,1731220243595,-500.0,0.00030684,2]
[341768908,1731220243604,-500.0,0.00030684,2]
[341768910,1731220243614,-500.0,0.00030684,2]
[341768912,1731220243623,-500.0,0.00030684,2]
[341768914,1731220243632,-500.0,0.00030684,2]
[341768916,1731220243643,-407.6241485,0.00030684,2]
[341768918,1731220243652,-4110.17,0.00030684,2]
[341768920,1731220243661,-500.0,0.00030684,2]
[341768922,1731220243670,-500.0,0.00030684,2]
[341768924,1731220243679,-642.54,0.00030684,2]
[341768926,1731220243688,-513.61039883,0.00030684,2]
[341768928,1731220243697,-500.0,0.00030684,2]
[341768930,1731220243706,-500.0,0.00030684,2]
[341768932,1731220243715,-500.0,0.00030684,2]
[341768934,1731220243725,-500.0,0.00030684,2]
[341768936,1731220243734,-500.0,0.00030684,2]
[341768938,1731220243743,-500.0,0.00030684,2]
[341768940,1731220243751,-201.95310859,0.00030684,2]
[341768942,1731220243760,-883.18,0.00030684,2]
[341768944,1731220243771,-416.1,0.00030684,2]
[341768946,1731220243780,-533.45,0.00030684,2]
[341768948,1731220243789,-500.0,0.00030684,2]
[341768950,1731220243800,-500.0,0.00030684,2]
[341768952,1731220243810,-642.83152483,0.00030684,2]
[341768954,1731220243819,-500.0,0.00030684,2]
[341768956,1731220243829,-500.0,0.00030684,2]
[341768958,1731220243839,-500.0,0.00030684,2]
[341768960,1731220243848,-1314.13,0.00030764,2]
[341768962,1731220243857,-24390.57920229,0.000309,2]
[341768964,1731220243868,-529.51437948,0.000309,2]
[341768970,1731220243922,-500.0,0.00030135,2]
[341768972,1731220243932,-141.68,0.00030135,2]
[341770282,1731220440676,5000.0,0.00020844,2]
[341770283,1731220455990,5000.0,0.00020844,2]
[341770284,1731220470906,5000.0,0.00020844,2]
[341770285,1731220485813,2447.63600758,0.00020844,2]
[341770286,1731220564136,163.151401,0.00013973,2]
[341770313,1731220623413,5000.0,0.00020844,2]
[341770314,1731220638521,5000.0,0.00020844,2]
[341770315,1731220653703,5000.0,0.00020844,2]
[341770316,1731220669967,5000.0,0.00020844,2]
[341770317,1731220685593,1475.66227657,0.00020844,2]
[341770319,1731220772275,607.63888889,0.00020844,2]
[341770335,1731221271481,607.63888889,0.00020844,2]
[341770336,1731221273756,162.876636,0.00013973,2]
[341770367,1731221431996,-162.876636,0.00022174,2]
[341770369,1731221432006,-270.08330895,0.00022326,2]
[341770370,1731221432015,-138.03425505,0.00022426,2]
[341770371,1731221432027,-17.06674495,0.00022426,2]
[341770372,1731221432036,-171.9198373,0.00023268,2]
[341770373,1731221432045,-223.62099168,0.0002353,2]
[341770374,1731221432056,-410.59100478,0.0002353,2]
[341770375,1731221432067,-546.32527654,0.0002353,2]
[341770376,1731221432076,-178.4067064,0.00023701,2]
[341770377,1731221432085,-635.55776432,0.00023764,2]
[341770379,1731221432097,-457.96346488,0.00023764,2]
[341770381,1731221432105,-607.63888889,0.00023909,2]
[341770382,1731221432113,-38.90388491,0.00024215,2]
[341770383,1731221432123,-1141.63338809,0.00024215,2]
[341770384,1731221432133,-250.0,0.00024216,2]
[341770385,1731221432142,-752.38581081,0.000249,2]
[341770386,1731221432151,-1180.537273,0.000249,2]
[341770387,1731221432160,-175.139847,0.0002493,2]
[341770388,1731221432170,-300.0,0.00025067,2]
[341770390,1731221432179,-300.0,0.00025067,2]
[341770391,1731221432188,-24900.0,0.00025068,2]
[341770392,1731221432197,-2493.60368109,0.00025661,2]
[341770415,1731221438184,-452.30146993,0.00025661,2]
[341770419,1731221438419,-3391.39095308,0.00025661,2]
[341770421,1731221438428,-329.6403749,0.00025974,2]
[341770423,1731221438438,-404.670582,0.00026074,2]
[341770425,1731221438447,-175.315309,0.00026733,2]
[341770427,1731221438456,-1237.84260769,0.00026733,2]
[341770429,1731221438466,-420.0,0.00027154,2]
[341770431,1731221438475,-420.0,0.00027574,2]
[341770433,1731221438484,-3000.0,0.00028314,2]
[341770435,1731221438493,-10070.53184067,0.0002908,30]
[341770437,1731221438504,-212.0390805,0.0002926,30]
[341770440,1731221438521,-153.0,0.0002926,30]
[341770442,1731221438535,-587.0,0.00029415,2]
[341770444,1731221438545,-589.38,0.0002999,3]
[341770446,1731221438555,-294.69,0.0002999,3]
[341770448,1731221438564,-884.09,0.0002999,3]
[341770450,1731221438574,-547.44,0.0002999,10]
[341770452,1731221438585,-45694.09761463,0.0003,2]
[341770454,1731221438595,-151.0,0.0003,120]
[341770456,1731221438604,-151.0,0.0003,120]
[341770458,1731221438613,-155.0,0.0003,120]
[341770460,1731221438623,-548.27158039,0.00030035,2]
[341770462,1731221438632,-212.0390805,0.00030082,30]
[341770465,1731221438642,-212.0390805,0.00030082,30]
[341770467,1731221438651,-182.3302071,0.00030082,30]
[341770469,1731221438660,-212.0390805,0.00030082,30]
[341770471,1731221438670,-212.0390805,0.00030082,30]
[341770473,1731221438680,-212.0390805,0.00030082,30]
[341770475,1731221438689,-153.0,0.00030082,30]
[341770477,1731221438699,-212.0390805,0.00030082,30]
[341770479,1731221438708,-212.0390805,0.00030082,30]
[341770481,1731221438717,-153.0,0.00030082,30]
[341770483,1731221438728,-212.0390805,0.00030082,30]
[341770485,1731221438737,-153.0,0.00030082,30]
[341770487,1731221438747,-212.0390805,0.00030082,30]
[341770488,1731221438756,-212.0390805,0.00030082,30]
[341770489,1731221438765,-153.0,0.00030082,30]
[341770490,1731221438775,-212.0390805,0.00030082,30]
[341770491,1731221438784,-212.0390805,0.00030082,30]
[341770492,1731221438793,-212.0390805,0.00030082,30]
[341770493,1731221438803,-153.0,0.00030082,30]
[341770494,1731221438812,-212.0390805,0.00030082,30]
[341770495,1731221438822,-212.0390805,0.00030082,30]
[341770496,1731221438831,-961.41,0.00030125,10]
[341770497,1731221438840,-11371.93393935,0.00030133,5]
[341770498,1731221438850,-500.0,0.00030135,2]
[341770499,1731221438859,-366.56192099,0.00030135,2]
[341770500,1731221438869,-500.0,0.00030135,2]
[341770501,1731221438878,-500.0,0.00030135,2]
[341770502,1731221438888,-500.0,0.00030135,2]
[341770503,1731221438897,-500.0,0.00030135,2]
[341770504,1731221438907,-500.0,0.00030135,2]